bitfinex-derivatives/quotes_ETHF0:USTF0_20240913
["timestamp","ask_amount","ask_price","bid_price","bid_amount"]
[1726266096643,0.40734,2453.6,2453.0,0.40743]
[1726266097044,0.40734,2453.6,2453.0,0.40742]
[1726266097535,0.40734,2453.6,2453.1,0.40742]
[1726266098041,0.3909,2453.7,2453.1,0.40742]
[1726266098347,0.40735,2453.6,2453.1,0.40742]
[1726266098848,4.118,2453.9,2453.6,0.40733]
[1726266099038,0.40727,2454.0,2453.5,0.40734]
[1726266099242,0.40725,2454.1,2453.5,0.40734]
[1726266099544,4.36655,2454.2,2453.7,0.40731]
[1726266099734,4.36654,2454.2,2453.7,0.40731]
[1726266099934,3.5837,2454.2,2453.8,0.4073]
[1726266100159,3.5837,2454.2,2453.8,0.40729]
[1726266100640,0.3808,2454.3,2453.6,0.7935]
[1726266100952,3.2078,2454.6,2454.0,0.40726]
[1726266100953,0.40719,2454.5,2454.0,0.40726]
[1726266101949,7.3258,2455.0,2454.1,3.2078]
[1726266102139,3.2078,2455.0,2454.2,0.4071]
[1726266102339,3.2078,2455.0,2454.2,3.2078]
[1726266102545,3.2078,2455.0,2454.1,0.40725]
[1726266102546,0.40715,2454.8,2454.1,0.40725]
[1726266102735,0.40715,2454.8,2453.8,3.2078]
[1726266102937,0.80006,2454.7,2454.0,0.40726]
[1726266103140,3.6007,2454.7,2453.8,3.2078]
[1726266103346,0.4072,2454.5,2453.8,3.2078]
[1726266103549,0.3981,2454.4,2453.8,3.2078]
[1726266104437,0.80531,2454.4,2453.8,3.2078]
[1726266104645,3.6059,2454.4,2453.8,3.2078]
[1726266104946,0.40724,2454.2,2453.8,3.2078]
[1726266105340,0.4033,2454.1,2453.8,3.2078]
[1726266105745,0.81056,2454.1,2453.8,3.2078]
[1726266106253,0.4033,2454.1,2453.8,3.2078]
[1726266107044,3.6059,2454.4,2453.8,3.2078]
[1726266107351,0.40722,2454.3,2453.8,3.2078]
[1726266107851,0.40724,2454.2,2453.8,3.2078]
[1726266108053,0.40725,2454.2,2453.8,3.2078]
[1726266108354,0.40723,2454.3,2453.8,3.2078]
[1726266108550,0.40724,2454.2,2453.8,3.2078]
[1726266109349,0.40726,2454.1,2453.5,0.40735]
[1726266109651,0.376,2454.0,2453.5,0.40735]
[1726266109857,0.40729,2453.9,2453.4,3.5832]
[1726266110051,0.78328,2454.0,2453.4,3.99057]
[1726266110247,0.78327,2454.0,2453.4,0.78276]
[1726266110553,0.376,2454.0,2453.4,0.3754]
[1726266110743,0.3989,2453.9,2453.4,0.3754]
[1726266111246,0.3989,2453.9,2453.4,0.78277]
[1726266111643,0.80619,2453.9,2453.4,0.3754]
[1726266112853,0.4073,2453.8,2453.4,0.3754]
[1726266113046,3.6067,2453.9,2453.2,0.3793]
[1726266113249,0.4086,2453.7,2453.2,0.3793]
[1726266113449,0.4086,2453.7,2453.3,0.40738]
[1726266113650,0.40729,2453.9,2453.3,0.40738]
[1726266113853,0.40729,2453.9,2453.2,0.78669]
[1726266114055,0.40729,2453.9,2453.3,0.40738]
[1726266114259,0.40729,2453.9,2453.4,3.2078]
[1726266114758,0.78328,2454.0,2453.4,3.2078]
[1726266115057,0.78328,2454.0,2453.4,3.61517]
[1726266115253,0.376,2454.0,2453.6,0.40733]
[1726266115556,0.4086,2454.1,2453.5,0.78994]
[1726266115557,0.40726,2454.1,2453.5,0.78994]
[1726266115760,3.61504,2454.2,2453.6,0.40734]
[1726266116250,4.5089,2454.4,2453.7,3.2078]
[1726266116446,4.5089,2454.4,2453.8,0.3856]
[1726266116644,4.91611,2454.4,2453.9,0.40728]
[1726266116846,4.91611,2454.4,2454.0,0.40726]
[1726266116847,4.5089,2454.4,2454.0,0.40726]
[1726266117046,4.5089,2454.4,2453.8,0.3856]
[1726266117047,0.7981,2454.4,2453.9,0.40728]
[1726266118245,0.3909,2454.4,2453.9,0.40728]
[1726266118451,3.2078,2454.5,2454.1,0.40724]
[1726266118654,3.2078,2454.5,2454.2,0.3778]
[1726266120454,3.2078,2454.5,2454.0,3.61506]
[1726266120455,3.61499,2454.5,2454.0,3.61506]
[1726266120656,3.61499,2454.5,2453.5,3.2078]
[1726266120657,3.2078,2454.1,2453.5,3.2078]
[1726266120967,0.40729,2453.9,2453.5,3.2078]
[1726266121456,0.394,2454.0,2453.5,3.61515]
[1726266121654,0.394,2454.0,2453.6,0.40733]
[1726266121965,0.40724,2454.2,2453.6,0.40732]
[1726266122159,0.3915,2454.3,2453.8,3.2078]
[1726266122351,0.3915,2454.3,2453.8,3.61509]
[1726266122655,7.3258,2454.5,2454.1,0.40725]
[1726266122858,7.3258,2454.5,2453.9,0.8036]
[1726266122859,3.2078,2454.5,2453.9,0.8036]
[1726266123053,3.5851,2454.8,2454.1,3.2078]
[1726266123251,3.99224,2454.8,2454.3,0.40721]
[1726266123471,3.99224,2454.8,2454.4,0.4072]
[1726266124451,3.99224,2454.8,2454.1,3.2078]
[1726266124452,0.40716,2454.7,2454.2,0.40723]
[1726266124660,0.40716,2454.7,2454.1,3.2078]
[1726266124661,3.99224,2454.8,2454.1,3.2078]
[1726266124868,3.99224,2454.8,2454.3,0.40721]
[1726266125063,0.40716,2454.7,2454.2,0.40723]
[1726266125765,3.5851,2454.8,2454.1,3.2078]
[1726266125766,0.40718,2454.6,2454.1,3.2078]
[1726266126062,0.81678,2454.6,2454.1,3.61505]
[1726266126455,0.81678,2454.6,2454.1,3.2078]
[1726266126456,0.4096,2454.6,2454.1,3.2078]
[1726266127069,0.40719,2454.5,2454.1,3.2078]
[1726266127863,0.4096,2454.6,2454.1,3.2078]
[1726266128161,0.4072,2454.5,2454.1,3.2078]
[1726266128366,0.4096,2454.6,2454.1,3.2078]
[1726266128552,0.40719,2454.5,2454.1,3.2078]
[1726266128752,0.4096,2454.6,2454.1,3.2078]
[1726266129065,0.4072,2454.5,2454.1,3.2078]
[1726266129358,0.4096,2454.6,2454.1,3.2078]
[1726266129564,0.4072,2454.5,2454.1,3.2078]
[1726266130064,0.40721,2454.4,2454.1,3.2078]
[1726266130252,0.40719,2454.5,2454.1,3.2078]
[1726266130454,0.40721,2454.4,2454.1,3.2078]
[1726266130859,0.40724,2454.2,2453.8,1.06110648]
[1726266131054,0.4091,2454.1,2453.8,1.06110648]
[1726266131269,0.4091,2454.1,2453.7,1.06110648]
[1726266131660,0.3882,2454.0,2453.6,3.2078]
[1726266131856,0.4097,2454.5,2453.6,3.2078]
[1726266132067,0.4072,2454.5,2453.9,3.61508]
[1726266132377,4.41228,2454.6,2454.0,0.78317]
[1726266132567,4.41228,2454.6,2454.1,0.40725]
[1726266132959,4.41228,2454.6,2454.0,0.7706]
[1726266132960,0.40719,2454.5,2454.0,1.17786]
[1726266133364,4.41228,2454.6,2454.0,1.17786]
[1726266133662,0.40719,2454.5,2454.0,1.17786]
[1726266133862,4.0051,2454.6,2454.0,1.83170648]
[1726266133863,3.2078,2454.6,2454.0,1.83170648]
[1726266134065,3.2078,2454.6,2454.2,0.40723]
[1726266134764,3.2078,2454.6,2454.1,1.46834648]
[1726266134966,3.2078,2454.6,2454.0,1.83170648]
[1726266135158,3.2078,2454.6,2454.0,0.7706]
[1726266135359,0.40721,2454.4,2454.0,0.3759]
[1726266135556,0.40722,2454.3,2453.8,1.46839648]
[1726266135760,0.40724,2454.2,2453.8,1.06110648]
[1726266136064,0.4075,2454.3,2453.9,0.40728]
[1726266136869,0.4075,2454.3,2453.7,1.44240648]
[1726266136870,0.81472,2454.3,2453.7,1.44240648]
[1726266137068,0.4075,2454.3,2453.7,1.84971648]
[1726266137262,0.4075,2454.3,2453.8,1.06110648]
[1726266137263,0.81473,2454.3,2453.8,1.06110648]
[1726266137465,0.81473,2454.3,2453.8,1.46840648]
[1726266137765,0.81473,2454.3,2453.8,0.4073]
[1726266138065,0.81472,2454.3,2453.8,1.46839648]
[1726266138364,0.40724,2454.2,2453.7,1.84972648]
[1726266138575,0.78354,2454.2,2453.7,1.84972648]
[1726266138865,0.78354,2454.2,2453.7,1.44240648]
[1726266139064,0.40725,2454.1,2453.7,1.44240648]
[1726266139268,0.3763,2454.2,2453.7,1.44240648]
[1726266139468,0.40732,2453.7,2453.6,1.06110648]
[1726266139668,0.40735,2453.6,2453.4,1.06110648]
[1726266139879,0.393,2453.5,2453.3,1.06110648]
[1726266140074,0.393,2453.5,2453.1,1.97528671]
[1726266140075,0.393,2453.5,2453.2,1.06110648]
[1726266140265,0.393,2453.5,2453.0,1.45560648]
[1726266140266,0.80036,2453.5,2453.0,1.45560648]
[1726266140670,0.40738,2453.4,2453.0,1.45560648]
[1726266140864,0.40738,2453.4,2453.0,0.3945]
[1726266141068,0.80036,2453.5,2453.0,0.3945]
[1726266141268,3.5941,2453.6,2453.1,0.40741]
[1726266141469,3.5941,2453.6,2453.0,1.45560648]
[1726266141678,0.40739,2453.3,2453.0,1.45560648]
[1726266141973,0.40737,2453.4,2452.9,4.67440648]
[1726266142172,0.393,2453.5,2453.0,1.06110648]
[1726266142377,0.40728,2454.0,2453.4,0.40737]
[1726266142671,0.40728,2454.0,2453.4,0.40736]
[1726266143071,0.40729,2453.9,2453.3,1.46848648]
[1726266143271,0.40729,2453.9,2453.3,0.40738]
[1726266143671,0.40729,2453.9,2453.3,1.46848648]
[1726266143970,0.40732,2453.8,2453.2,1.06110648]
[1726266144177,3.9843,2454.1,2453.1,4.67631648]
[1726266144379,0.40732,2453.8,2453.1,4.67631648]
[1726266144673,0.40727,2454.0,2453.2,1.06110648]
[1726266144878,3.9843,2454.1,2453.2,1.06110648]
[1726266145172,0.40728,2454.0,2453.3,0.40737]
[1726266145371,4.39156,2454.1,2453.3,1.45190648]
[1726266145564,4.39156,2454.1,2453.4,3.5908]
[1726266145769,3.9843,2454.1,2453.4,3.5908]
[1726266146174,4.39155,2454.1,2453.4,3.99815]
[1726266146380,4.39155,2454.1,2453.4,4.65190648]
[1726266146381,0.40727,2454.0,2453.4,4.65190648]
[1726266146567,3.9843,2454.1,2453.4,4.65190648]
[1726266146768,3.9843,2454.1,2453.4,3.5908]
[1726266146964,3.9843,2454.1,2453.4,4.65190648]
[1726266147176,3.9843,2454.1,2453.4,3.5908]
[1726266147383,0.40728,2454.0,2453.4,3.5908]
[1726266147770,0.40729,2453.9,2453.4,3.5908]
[1726266148676,0.40731,2453.8,2453.4,3.2078]
[1726266149078,7.2838,2453.8,2453.1,1.06110648]
[1726266149374,0.40734,2453.6,2453.0,4.66110648]
[1726266149576,0.40738,2453.4,2453.0,3.6]
[1726266149777,1.21006,2453.5,2453.0,3.6]
[1726266149981,0.40737,2453.4,2453.0,3.6]
[1726266150280,0.40739,2453.3,2453.0,3.6]
[1726266150477,0.40739,2453.3,2453.0,3.2078]
[1726266151470,4.0105,2453.5,2453.0,3.2078]
[1726266151673,1.01843,2453.4,2452.5,1.85740648]
[1726266151873,0.40744,2453.0,2452.5,1.85740648]
[1726266152283,0.40744,2453.0,2452.5,1.20382]
[1726266152478,0.40744,2453.0,2452.5,2.26492648]
[1726266153281,0.40744,2453.0,2452.5,1.20382]
[1726266153482,0.40744,2453.0,2452.5,2.26492648]
[1726266153685,0.40744,2453.0,2452.5,1.20382]
[1726266153882,0.40746,2452.9,2452.5,0.7963]
[1726266154280,4.118,2453.4,2452.1,1.06110648]
[1726266154281,3.2078,2453.2,2452.1,1.06110648]
[1726266154585,0.40743,2453.1,2452.5,0.4044]
[1726266154780,0.40744,2453.0,2452.6,0.4066]
[1726266155687,3.2078,2453.2,2452.6,0.4066]
[1726266155979,0.40747,2452.8,2452.3,3.61534]
[1726266156880,0.40748,2452.8,2452.3,3.61535]
[1726266157078,0.4075,2452.6,2452.3,3.2078]
[1726266157980,0.3713,2452.8,2452.4,0.40753]
[1726266158179,0.77878,2452.8,2452.3,0.40754]
[1726266158579,0.3713,2452.8,2452.2,3.9889]
[1726266158777,3.61526,2452.9,2452.2,3.9889]
[1726266158983,0.40747,2452.8,2452.2,3.9889]
[1726266159184,0.40747,2452.8,2452.4,0.40752]
[1726266159379,0.40747,2452.8,2452.2,3.9889]
[1726266160577,3.2078,2452.9,2452.2,3.9889]
[1726266160780,0.3775,2453.0,2452.6,0.4075]
[1726266161082,0.3775,2453.0,2452.2,0.7811]
[1726266161083,0.3775,2453.0,2452.2,3.6122]
[1726266161283,0.3775,2453.0,2452.2,4.0121]
[1726266161485,0.78495,2453.0,2452.5,3.61531]
[1726266161679,0.78495,2453.0,2452.5,3.2078]
[1726266161884,0.3775,2453.0,2452.6,0.40749]
[1726266162287,0.40745,2452.9,2452.7,0.3999]
[1726266162892,7.2846,2452.8,2452.2,3.6122]
[1726266163080,3.2078,2452.8,2452.2,3.6122]
[1726266163282,3.2078,2452.8,2452.2,3.2078]
[1726266163283,0.402,2452.7,2452.2,3.2078]
[1726266163479,0.40756,2452.3,2452.2,3.2078]
[1726266163885,0.40755,2452.4,2452.2,3.2078]
[1726266164193,0.40755,2452.3,2451.9,0.4046]
[1726266164785,0.40754,2452.4,2451.9,4.02001]
[1726266164993,0.40752,2452.5,2452.0,0.40759]
[1726266165183,0.40753,2452.5,2452.0,0.4076]
[1726266165385,0.3858,2452.6,2451.9,3.6124]
[1726266165585,0.40752,2452.5,2452.0,0.40759]
[1726266165801,0.40752,2452.5,2452.0,0.4076]
[1726266166290,0.79331,2452.6,2452.1,0.40758]
[1726266166494,0.3858,2452.6,2451.9,3.6124]
[1726266166689,0.3775,2453.0,2452.4,0.40753]
[1726266166989,0.40747,2452.8,2452.5,0.7777]
[1726266167197,0.40746,2452.9,2452.5,1.18522]
[1726266167397,3.2078,2453.1,2452.5,3.9855]
[1726266167897,3.2078,2453.1,2452.6,0.4075]
[1726266168100,3.2078,2453.1,2452.8,0.40746]
[1726266168893,3.61522,2453.1,2452.7,0.40747]
[1726266169993,3.2078,2453.1,2452.7,0.40747]
[1726266172093,3.2078,2453.1,2452.7,0.40748]
[1726266172484,3.61522,2453.1,2452.7,0.40748]
[1726266173988,3.2078,2453.1,2452.5,3.9855]
[1726266174292,3.2078,2453.1,2452.8,0.40746]
[1726266174894,3.2078,2453.1,2453.0,0.40743]
[1726266175190,0.40736,2453.5,2453.2,0.4074]
[1726266175393,0.40736,2453.5,2453.1,0.40741]
[1726266175594,0.40737,2453.4,2453.1,0.40742]
[1726266175905,0.40735,2453.5,2452.8,3.5828]
[1726266176088,0.40735,2453.5,2453.1,0.40741]
[1726266176289,0.40735,2453.5,2453.2,0.4058]
[1726266176792,4.5188,2453.6,2453.2,0.4058]
[1726266176995,0.4008,2453.6,2453.2,0.4058]
[1726266177596,0.40736,2453.5,2453.2,0.4058]
[1726266178094,0.4008,2453.6,2453.2,0.8132]
[1726266178288,0.40735,2453.5,2453.2,0.4058]
[1726266179199,0.80815,2453.6,2453.2,0.8132]
[1726266179384,0.40735,2453.5,2453.2,0.4058]
[1726266179588,0.4008,2453.6,2453.3,0.40738]
[1726266179793,0.4008,2453.6,2453.2,0.81319]
[1726266180007,0.80814,2453.6,2453.2,3.6136]
[1726266180297,0.80814,2453.6,2453.2,4.021]
[1726266180486,0.4008,2453.6,2453.2,0.4058]
[1726266180893,0.80814,2453.6,2453.2,0.81319]
[1726266181090,0.3704,2453.7,2453.3,0.40739]
[1726266181297,0.77773,2453.7,2453.3,0.40739]
[1726266181497,0.40738,2453.4,2453.2,0.4058]
[1726266181692,1.01835,2453.6,2452.9,3.2078]
[1726266182304,0.40738,2453.4,2452.9,3.2078]
[1726266182493,0.4107,2453.3,2452.9,3.2078]
[1726266182694,0.4107,2453.3,2453.0,0.40743]
[1726266183295,0.81809,2453.3,2452.9,3.61525]
[1726266183601,0.4043,2453.2,2452.9,3.61525]
[1726266183995,0.4043,2453.2,2452.9,3.2078]
[1726266184294,0.7845,2453.2,2452.9,3.2078]
[1726266184495,0.4043,2453.2,2452.9,3.61524]
[1726266184698,0.4043,2453.2,2452.9,3.2078]
[1726266185095,0.8117,2453.2,2452.9,3.2078]
[1726266186597,0.40743,2453.1,2452.9,3.2078]
[1726266186790,0.81171,2453.2,2452.7,0.40747]
[1726266187597,0.4043,2453.2,2452.7,0.40747]
[1726266187790,0.81171,2453.2,2452.7,0.40747]
[1726266188003,0.81171,2453.2,2452.6,3.2078]
[1726266188004,0.4043,2453.2,2452.6,3.2078]
[1726266188194,0.40746,2452.9,2452.6,3.2078]
[1726266188396,0.40743,2453.1,2452.6,3.61529]
[1726266188591,0.81171,2453.2,2452.7,0.40748]
[1726266188900,0.81171,2453.2,2452.8,0.40746]
[1726266188901,0.4043,2453.2,2452.8,0.40746]
[1726266189203,0.8117,2453.2,2452.6,4.26890648]
[1726266189501,0.8117,2453.2,2452.7,0.40748]
[1726266191100,4.0195,2453.2,2452.7,0.40748]
[1726266191304,4.0195,2453.2,2452.6,4.26890648]
[1726266191305,4.0195,2453.2,2452.8,0.40747]
[1726266191902,0.8117,2453.2,2452.7,0.40747]
[1726266192093,0.8117,2453.2,2452.8,0.40747]
[1726266192417,0.4043,2453.2,2452.8,0.40747]
[1726266192600,0.4043,2453.2,2452.6,4.26890648]
[1726266192790,0.4043,2453.2,2452.9,0.40744]
[1726266193391,0.4043,2453.2,2452.8,0.40746]
[1726266193812,0.8117,2453.2,2452.8,0.40746]
[1726266194205,0.4043,2453.2,2452.9,0.40745]
[1726266194995,0.8117,2453.2,2452.8,0.40746]
[1726266195201,0.8117,2453.2,2452.8,1.46856648]
[1726266195501,0.40743,2453.1,2452.7,1.06110648]
[1726266195706,0.81171,2453.2,2452.8,0.40746]
[1726266196196,0.81171,2453.2,2452.8,1.46856648]
[1726266196598,0.40742,2453.1,2452.8,1.46856648]
[1726266196907,0.40742,2453.1,2452.7,1.46858648]
[1726266198200,0.40742,2453.1,2452.8,0.40747]
[1726266198402,0.40742,2453.1,2452.7,1.46857648]
[1726266198601,0.4043,2453.2,2452.7,1.06110648]
[1726266198803,3.6121,2453.2,2452.6,1.06110648]
[1726266198997,0.40745,2453.0,2452.7,1.06110648]
[1726266199300,0.40743,2453.1,2452.7,1.46858648]
[1726266201707,0.40744,2453.0,2452.7,1.46858648]
[1726266201902,3.6121,2453.2,2452.7,1.46858648]
[1726266202599,0.4043,2453.2,2452.7,4.26890648]
[1726266202806,0.8181,2453.3,2453.0,3.2078]
[1726266203512,0.8181,2453.3,2453.0,4.26890648]
[1726266203712,0.8181,2453.3,2453.0,3.61523]
[1726266204104,0.4107,2453.3,2453.0,4.26890648]
[1726266204407,0.4107,2453.3,2453.1,0.78761]
[1726266204806,0.78205,2453.5,2453.1,0.78761]
[1726266205012,0.78207,2453.5,2453.1,2.22391648]
[1726266205308,0.4074,2453.2,2453.1,0.7554]
[1726266205608,0.40739,2453.3,2452.9,1.46855648]
[1726266206404,4.60091,2453.5,2453.0,3.61523]
[1726266206405,0.40738,2453.4,2453.0,3.61523]
[1726266206910,0.40739,2453.3,2452.9,1.46854648]
[1726266207210,3.98986,2453.5,2453.1,0.40741]
[1726266207405,0.40738,2453.4,2453.0,0.40743]
[1726266207713,0.40738,2453.4,2453.0,1.46853648]
[1726266208508,0.40737,2453.4,2453.0,4.67633648]
[1726266209307,0.40739,2453.3,2453.0,4.67633648]
[1726266209502,0.40739,2453.3,2453.0,4.26890648]
[1726266210415,0.3747,2453.5,2453.0,4.26890648]
[1726266210719,0.40737,2453.4,2453.1,1.06110648]
[1726266211618,0.7871,2453.6,2453.1,1.06110648]
[1726266211619,0.4069,2453.6,2453.2,1.46849648]
[1726266211812,0.4069,2453.6,2453.3,0.3923]
[1726266212014,0.81424,2453.6,2453.3,0.7778]
[1726266212514,3.6017,2453.8,2453.3,2.24628648]
[1726266212721,4.00902,2453.8,2453.3,1.83890648]
[1726266212908,3.2078,2453.8,2453.5,2.62898319]
[1726266213115,3.2078,2453.8,2453.6,1.46843648]
[1726266213416,3.61511,2453.8,2453.6,1.06110648]
[1726266213815,3.61511,2453.8,2453.5,1.06110648]
[1726266214422,3.2078,2453.8,2453.5,1.46845648]
[1726266214935,0.40732,2453.7,2453.5,1.06110648]
[1726266215221,0.40735,2453.5,2453.4,1.06110648]
[1726266215709,0.40737,2453.4,2453.2,1.06110648]
[1726266215914,0.4011,2453.4,2453.2,1.06110648]
[1726266216208,0.3856,2453.7,2453.2,1.46849648]
[1726266216413,0.79293,2453.7,2453.3,1.06110648]
[1726266217021,0.40734,2453.6,2453.3,1.06110648]
[1726266218515,0.79293,2453.7,2453.3,1.06110648]
[1726266218815,0.3856,2453.7,2453.3,1.06110648]
[1726266219017,0.79293,2453.7,2453.3,1.06110648]
[1726266219215,0.3856,2453.7,2453.3,1.46848648]
[1726266219415,0.4011,2454.0,2453.4,1.06110648]
[1726266219718,0.4011,2454.0,2453.6,1.46842648]
[1726266219921,0.4011,2454.0,2453.7,0.4107]
[1726266220807,0.4011,2454.0,2453.6,1.06110648]
[1726266221010,0.4011,2454.0,2453.5,1.45750648]
[1726266221011,0.40731,2453.8,2453.5,1.45750648]
[1726266221314,0.4011,2454.0,2453.5,1.86484648]
[1726266221617,0.40729,2453.9,2453.6,1.06110648]
[1726266221820,0.4011,2454.0,2453.6,1.06110648]
[1726266221821,0.40731,2453.8,2453.6,1.06110648]
[1726266222213,0.40731,2453.8,2453.5,1.45750648]
[1726266222519,0.4011,2454.0,2453.5,0.3964]
[1726266222714,0.4073,2453.9,2453.5,0.3964]
[1726266222923,0.4011,2454.0,2453.5,1.45750648]
[1726266223109,0.80812,2453.8,2453.5,0.3964]
[1726266223715,0.80812,2453.8,2453.5,1.45750648]
[1726266223914,0.80812,2453.8,2453.5,0.3964]
[1726266224220,0.40732,2453.7,2453.5,0.3964]
[1726266224522,0.40733,2453.7,2453.4,1.06110648]
[1726266225208,0.4008,2453.8,2453.4,1.06110648]
[1726266225209,0.80811,2453.8,2453.4,1.06110648]
[1726266225421,0.80811,2453.8,2453.4,1.46847648]
[1726266225723,0.80811,2453.8,2453.4,1.06110648]
[1726266226111,0.80811,2453.8,2453.4,1.46847648]
[1726266226318,1.41931,2454.0,2453.5,0.40735]
[1726266226319,0.4073,2453.9,2453.5,0.40735]
[1726266226516,0.772,2454.0,2453.6,0.3733]
[1726266226718,0.40729,2453.9,2453.6,0.3733]
[1726266227529,0.40731,2453.8,2453.6,0.3733]
[1726266227825,0.40731,2453.8,2453.5,1.06110648]
[1726266228034,0.40731,2453.8,2453.4,1.84826648]
[1726266228236,0.40731,2453.8,2453.5,1.06110648]
[1726266228428,0.40733,2453.7,2453.4,1.44090648]
[1726266228618,0.40733,2453.7,2453.4,0.3798]
[1726266228819,0.78324,2453.6,2453.4,0.3798]
[1726266229118,0.3759,2453.6,2453.4,0.3798]
[1726266229629,0.3759,2453.6,2453.4,1.44090648]
[1726266229832,0.3759,2453.6,2453.4,0.3798]
[1726266230828,0.3759,2453.6,2453.4,0.78717]
[1726266231123,0.3759,2453.6,2453.4,0.3798]
[1726266231427,0.3759,2453.6,2453.4,0.78717]
[1726266231618,0.3759,2453.6,2453.4,0.3798]
[1726266232520,0.3759,2453.6,2453.4,1.84826648]
[1726266232732,0.79831,2453.8,2453.4,1.84826648]
[1726266232733,0.40731,2453.8,2453.4,1.84826648]
[1726266232917,1.41931,2454.0,2453.5,0.40735]
[1726266233119,0.40731,2453.8,2453.5,0.40735]
[1726266233321,0.40732,2453.7,2453.4,1.84826648]
[1726266233818,0.7679,2454.1,2453.8,0.40729]
[1726266233819,0.3824,2454.1,2453.8,0.40729]
[1726266234027,0.78967,2454.1,2453.9,0.4025]
[1726266234836,0.78967,2454.1,2453.5,1.06110648]
[1726266234837,0.40727,2454.0,2453.5,1.06110648]
[1726266235130,0.40727,2454.0,2453.5,1.46845648]
[1726266235131,0.3792,2454.0,2453.5,1.46845648]
[1726266235330,0.78648,2454.0,2453.5,1.46844648]
[1726266235828,0.3792,2454.0,2453.6,0.40733]
[1726266236126,0.78647,2454.0,2453.5,1.46845648]
[1726266237026,0.78647,2454.0,2453.5,1.06110648]
[1726266237027,0.3792,2454.0,2453.5,1.06110648]
[1726266237229,0.3792,2454.0,2453.6,1.46843648]
[1726266237440,0.3792,2454.0,2453.7,0.40732]
[1726266237734,0.3792,2454.0,2453.7,0.3964]
[1726266238531,0.78647,2454.0,2453.8,0.3948]
[1726266238730,0.3792,2454.0,2453.8,0.3948]
[1726266239229,0.78647,2454.0,2453.8,0.3948]
[1726266239619,0.3792,2454.0,2453.8,0.3948]
[1726266240037,0.40729,2453.9,2453.7,0.3964]
[1726266240228,0.3792,2454.0,2453.5,1.06110648]
[1726266240430,0.3792,2454.0,2453.4,1.43860648]
[1726266240624,0.40737,2453.4,2453.3,1.06110648]
[1726266240824,0.20375856,2453.4,2452.6,1.43860648]
[1726266241029,4.22631,2453.2,2452.6,1.43860648]
[1726266241234,0.40741,2453.2,2452.7,1.06110648]
[1726266241431,3.2078,2453.1,2452.7,1.46858648]
[1726266241632,0.7963,2453.3,2452.9,0.40744]
[1726266241840,0.7963,2453.3,2453.0,0.7644]
[1726266242032,1.20369,2453.3,2453.0,0.7644]
[1726266242338,0.40741,2453.2,2453.0,0.3775]
[1726266243036,5.0226,2453.3,2452.7,1.46110648]
[1726266243241,0.3849,2453.1,2452.7,1.46110648]
[1726266243432,0.40744,2453.0,2452.7,1.46110648]
[1726266244136,0.3849,2453.1,2452.7,1.86858648]
[1726266244344,1.20369,2453.3,2452.8,1.46856648]
[1726266244634,1.20369,2453.3,2452.9,0.79895]
[1726266244829,0.7963,2453.3,2453.0,0.40743]
[1726266245036,0.80076,2453.5,2453.1,0.40741]
[1726266245234,0.40737,2453.4,2453.0,0.40743]
[1726266245641,1.19834,2453.6,2452.9,5.05700648]
[1726266245846,3.2078,2453.7,2453.3,1.06110648]
[1726266246140,0.40734,2453.6,2453.4,0.7882]
[1726266246331,3.2078,2453.7,2453.4,0.7882]
[1726266246534,3.61513,2453.7,2453.4,0.7882]
[1726266246734,3.61513,2453.7,2453.4,2.25667648]
[1726266246937,3.2078,2453.7,2453.4,1.19557]
[1726266247335,3.61512,2453.7,2453.4,1.19557]
[1726266247535,3.61512,2453.7,2453.4,1.19556]
[1726266247738,3.61512,2453.7,2453.4,2.25666648]
[1726266248340,3.2078,2453.7,2453.4,2.25666648]
[1726266248533,0.7613,2453.9,2453.6,3.61514]
[1726266248739,0.7613,2453.9,2453.6,0.40734]
[1726266248740,1.16859,2453.9,2453.6,0.40734]
[1726266249145,0.80067,2454.1,2453.7,0.40731]
[1726266249333,0.80067,2454.1,2453.8,0.3901]
[1726266249532,0.7819,2454.2,2453.9,0.40728]
[1726266249837,0.40725,2454.1,2453.9,0.394]
[1726266250844,0.7819,2454.2,2453.9,0.80128]
[1726266251134,0.7819,2454.2,2454.0,3.61507]
[1726266251341,0.7819,2454.2,2454.0,3.2078]
[1726266251535,0.40723,2454.3,2454.0,3.2078]
[1726266252032,0.40724,2454.2,2454.0,3.2078]
[1726266252635,4.8967,2454.4,2454.0,3.2078]
[1726266252844,1.18591,2454.4,2454.0,3.61506]
[1726266253546,0.40722,2454.3,2454.0,3.61506]
[1726266254245,1.18591,2454.4,2454.0,3.61506]
[1726266254449,0.40722,2454.3,2454.0,3.61506]
[1726266254635,0.40725,2454.1,2454.0,2.5909]
[1726266254835,0.40733,2453.7,2453.4,5.17110648]
[1726266255030,4.22593,2454.2,2453.4,1.06110648]
[1726266255031,0.78,2453.6,2453.4,1.06110648]
[1726266255230,0.78,2453.6,2453.3,1.06110648]
[1726266255438,0.78,2453.6,2453.2,1.06110648]
[1726266255439,0.40739,2453.3,2453.2,1.06110648]
[1726266255643,3.9878,2453.6,2453.1,1.06110648]
[1726266255644,5.00617,2453.6,2453.1,1.06110648]
[1726266255834,0.40738,2453.4,2453.1,1.06110648]
[1726266256034,0.40738,2453.4,2453.0,2.75880671]
[1726266256035,1.01839,2453.5,2453.0,1.84460648]
[1726266256236,0.40739,2453.3,2453.0,2.25203648]
[1726266256543,0.40739,2453.3,2453.0,1.84460648]
[1726266256853,0.40739,2453.3,2453.0,2.25203648]
[1726266257546,3.9878,2453.6,2453.1,1.46851648]
[1726266257547,0.40738,2453.4,2453.1,1.46851648]
[1726266258249,0.40738,2453.4,2453.2,3.2078]